bitfinex/quotes_BTCUSD_20251221
["timestamp","ask_amount","ask_price","bid_price","bid_amount"]
[1766316371123,0.34086,88741.0,88726.0,0.39443]
[1766316371327,0.34086,88741.0,88726.0,0.46298]
[1766316371535,0.34086,88741.0,88728.0,0.46298]
[1766316371735,0.34086,88741.0,88729.0,0.39443]
[1766316375782,0.34086,88741.0,88729.0,0.85741]
[1766316376089,0.34086,88741.0,88730.0,0.39443]
[1766316376633,0.34086,88741.0,88731.0,0.39443]
[1766316376832,0.005091,88741.0,88733.0,0.39443]
[1766316380839,0.005091,88741.0,88732.0,0.46298]
[1766316383483,0.005091,88741.0,88732.0,0.84013]
[1766316387215,0.005091,88741.0,88732.0,0.46298]
[1766316387417,0.005091,88741.0,88733.0,0.37715]
[1766316388516,0.005091,88741.0,88734.0,0.37715]
[1766316388749,1e-06,88741.0,88725.0,0.00564]
[1766316389307,1e-06,88741.0,88726.0,0.82901]
[1766316389627,1e-06,88741.0,88725.0,0.00564]
[1766316390030,1e-06,88741.0,88726.0,0.82901]
[1766316390429,1e-06,88741.0,88725.0,0.00564]
[1766316390659,1e-06,88741.0,88726.0,0.82901]
[1766316391695,1e-06,88741.0,88725.0,0.00564]
[1766316391920,1e-06,88741.0,88726.0,0.82901]
[1766316392236,1e-06,88741.0,88725.0,0.00564]
[1766316392910,1e-06,88741.0,88726.0,0.82901]
[1766316393109,1e-06,88741.0,88726.0,0.78673]
[1766316393313,1e-06,88741.0,88725.0,0.00564]
[1766316393454,1e-06,88741.0,88727.0,0.33561]
[1766316393664,1e-06,88741.0,88729.0,0.33561]
[1766316393874,1e-06,88741.0,88731.0,0.33561]
[1766316394080,1e-06,88741.0,88730.0,0.45112]
[1766316394281,1e-06,88741.0,88726.0,0.33561]
[1766316394485,1e-06,88741.0,88727.0,0.33561]
[1766316395116,1e-06,88741.0,88726.0,0.75709]
[1766316395545,1e-06,88741.0,88725.0,0.00564]
[1766316395983,1e-06,88741.0,88726.0,0.75709]
[1766316396168,1e-06,88741.0,88725.0,0.00564]
[1766316396534,1e-06,88741.0,88726.0,0.42362]
[1766316396761,1e-06,88741.0,88728.0,0.42362]
[1766316396935,1e-06,88741.0,88729.0,0.33347]
[1766316397145,1e-06,88741.0,88731.0,0.75709]
[1766316397688,1e-06,88741.0,88732.0,0.33347]
[1766316402052,1e-06,88741.0,88734.0,0.33347]
[1766316408556,0.28854,88749.0,88734.0,0.33347]
[1766316408768,0.00564,88746.0,88736.0,0.33347]
[1766316410348,0.00564,88746.0,88735.0,0.42362]
[1766316410549,0.25197,88746.0,88735.0,0.42362]
[1766316413574,0.25197,88746.0,88729.0,0.00564]
[1766316413744,0.25197,88746.0,88730.0,0.42362]
[1766316413950,0.25197,88746.0,88733.0,0.33347]
[1766316414563,0.25197,88746.0,88733.0,0.42362]
[1766316414787,0.25197,88746.0,88734.0,0.33347]
[1766316415483,0.24633,88746.0,88734.0,0.33347]
[1766316415690,0.00564,88750.0,88738.0,0.33347]
[1766316415890,0.00564,88750.0,88742.0,0.33347]
[1766316416088,0.00564,88750.0,88743.0,0.33347]
[1766316416545,0.06314057,88751.0,88735.0,0.00564]
[1766316416546,0.00564,88751.0,88735.0,0.00564]
[1766316416854,0.00564,88751.0,88741.0,0.33347]
[1766316416991,0.00564,88751.0,88744.0,0.33347]
[1766316417198,0.00010763,88752.0,88744.0,0.33347]
[1766316417404,0.00574763,88752.0,88745.0,0.33347]
[1766316419190,0.00574763,88752.0,88745.0,0.332921]
[1766316419390,0.00574763,88752.0,88745.0,0.42362]
[1766316421135,0.00574763,88752.0,88745.0,0.75709]
[1766316429294,0.00574763,88752.0,88746.0,0.32193]
[1766316430267,0.00010763,88752.0,88746.0,0.32193]
[1766316432863,0.00055,88746.0,88745.0,0.42362]
[1766316433072,0.00010763,88752.0,88745.0,0.42362]
[1766316434215,0.00564,88756.0,88740.0,0.00564]
[1766316434410,0.0056885,88756.0,88744.0,0.32193]
[1766316434612,0.0056885,88756.0,88746.0,0.42048]
[1766316434774,0.0056885,88756.0,88747.0,0.32193]
[1766316435398,0.0056885,88756.0,88747.0,0.32138]
[1766316440961,0.10826057,88766.0,88756.0,0.0005005]
[1766316441146,0.0161843,88765.0,88756.0,0.0005005]
[1766316441289,0.23008692,88765.0,88750.0,0.32193]
[1766316441493,0.02429423,88764.0,88750.0,0.32193]
[1766316441716,0.19059423,88764.0,88750.0,0.32193]
[1766316441922,0.1663,88764.0,88750.0,0.32193]
[1766316443131,0.1663,88764.0,88740.0,0.00564]
[1766316443132,0.1663,88764.0,88752.0,0.32193]
[1766316443334,0.04512,88770.0,88752.0,0.32193]
[1766316443335,0.00564,88763.0,88757.0,0.42048]
[1766316443536,0.04512,88770.0,88752.0,4.85e-05]
[1766316443537,0.00564,88766.0,88759.0,0.32193]
[1766316443759,0.06314057,88765.0,88752.0,4.85e-05]
[1766316443963,0.06314057,88765.0,88753.0,0.03384818]
[1766316444178,0.22112057,88765.0,88753.0,0.03384818]
[1766316444395,0.15460743,88764.0,88753.0,0.03384818]
[1766316444612,0.15460743,88764.0,88751.0,0.00564]
[1766316446921,0.15460743,88764.0,88750.0,0.03384997]
[1766316451455,0.15460743,88764.0,88750.0,0.31618997]
[1766316452004,0.15460743,88764.0,88750.0,0.03384997]
[1766316452213,0.15460743,88764.0,88751.0,0.62698]
[1766316452491,0.00564,88766.0,88751.0,0.62698]
[1766316452814,0.00564,88766.0,88750.0,0.03384997]
[1766316453027,0.00564,88765.0,88750.0,0.03384997]
[1766316453222,0.00564,88765.0,88746.0,0.00564]
[1766316453427,0.15293001,88771.0,88739.0,0.04512]
[1766316453428,0.03385001,88771.0,88766.0,0.62698]
[1766316453667,0.03949001,88771.0,88766.0,0.62698]
[1766316453844,0.00564,88771.0,88766.0,0.62698]
[1766316456289,0.11011975,88777.0,88766.0,0.34464]
[1766316456465,0.04512,88796.0,88778.0,0.267]
[1766316456666,0.01616835,88795.0,88778.0,0.267]
[1766316456892,0.00564,88795.0,88778.0,0.267]
[1766316457304,0.00564,88795.0,88779.0,0.03384077]
[1766316457507,0.06314057,88798.0,88780.0,0.267]
[1766316457713,0.00564,88794.0,88782.0,0.267]
[1766316460267,0.09501,88794.0,88782.0,0.267]
[1766316460466,0.005091,88794.0,88787.0,0.33826]
[1766316460684,0.005091,88794.0,88788.0,0.267]
[1766316461635,0.0001,88799.0,88790.0,0.267]
[1766316461636,0.00564,88798.0,88790.0,0.267]
[1766316461849,0.0001,88799.0,88798.0,0.00055]
[1766316462161,0.00564,88798.0,88791.0,0.267]
[1766316462514,0.00263,88798.0,88791.0,0.267]
[1766316464779,0.00298904,88798.0,88791.0,0.267]
[1766316465768,0.00298904,88798.0,88786.0,0.03383619]
[1766316465968,0.00298904,88798.0,88787.0,0.60526]
[1766316466205,0.00298904,88798.0,88786.0,0.03383619]
[1766316466652,0.00298904,88798.0,88787.0,0.60526]
[1766316466922,0.00298904,88798.0,88783.0,0.00564]
[1766316466923,0.06763743,88797.0,88783.0,0.00564]
[1766316467149,0.06692,88797.0,88783.0,0.00564]
[1766316467360,0.06763743,88797.0,88785.0,0.03383714]
[1766316469926,0.06763743,88797.0,88783.0,0.00564]
[1766316483473,0.00071743,88797.0,88783.0,0.00564]
[1766316483695,0.00071743,88797.0,88784.0,0.267]
[1766316483895,0.01938,88796.0,88780.0,0.00564]
[1766316484088,0.000549,88780.0,88778.0,1.99e-06]
[1766316484309,0.00109,88779.0,88767.0,0.30755618]
[1766316484510,0.00109,88779.0,88770.0,0.00564]
[1766316484630,0.00109,88779.0,88771.0,0.03384146]
[1766316484830,0.00054,88779.0,88770.0,0.00564]
[1766316485088,0.00564,88782.0,88770.0,0.26090146]
[1766316491054,0.00564,88782.0,88770.0,0.03948146]
[1766316493569,0.06314057,88773.0,88768.0,0.00564]
[1766316493761,0.06314057,88773.0,88763.0,0.00564]
[1766316496945,0.00071743,88772.0,88763.0,0.00564]
[1766316497219,0.00071743,88772.0,88760.0,0.00564]
[1766316498344,0.00071743,88772.0,88760.0,0.22706]
[1766316501924,0.06314057,88773.0,88762.0,0.22142]
[1766316502079,0.06314057,88773.0,88763.0,0.22142]
[1766316503641,0.06324057,88773.0,88763.0,0.22142]
[1766316505492,0.06324057,88773.0,88762.0,0.31683]
[1766316506226,0.00071743,88772.0,88762.0,0.31683]
[1766316509790,0.00071743,88772.0,88762.0,0.53825]
[1766316512067,0.06324057,88773.0,88763.0,0.18069]
[1766316512502,0.00071743,88772.0,88763.0,0.18069]
[1766316514916,0.06324057,88773.0,88763.0,0.18069]
[1766316516307,0.00564,88772.0,88767.0,0.18807]
[1766316516507,0.00564,88772.0,88769.0,0.18807]
[1766316517347,0.00564,88774.0,88770.0,0.18807]
[1766316518009,0.00564,88774.0,88770.0,0.18507]
[1766316524676,0.0001,88780.0,88771.0,0.25824]
[1766316524677,0.00564,88777.0,88771.0,0.25824]
[1766316524802,0.00564,88777.0,88772.0,0.18807]
[1766316526105,0.0001,88780.0,88772.0,0.18807]
[1766316526362,0.00564,88779.0,88772.0,0.18807]
[1766316527264,0.0001,88780.0,88772.0,0.18807]
[1766316527505,0.06314057,88783.0,88778.0,0.18807]
[1766316527506,0.00564,88783.0,88778.0,0.18807]
[1766316527875,0.00035904,88798.0,88778.0,0.18807]
[1766316528080,0.00035904,88798.0,88783.0,0.25824]
[1766316528081,0.06314057,88787.0,88783.0,0.25824]
[1766316528265,0.06314057,88787.0,88784.0,0.18807]
[1766316528898,0.00035904,88798.0,88786.0,0.18807]
[1766316528899,0.00564,88791.0,88786.0,0.18807]
[1766316529096,0.00564,88791.0,88788.0,0.18807]
[1766316530051,0.00564,88791.0,88779.0,0.26388]
[1766316530654,0.06314057,88787.0,88779.0,0.26388]
[1766316530984,0.06314057,88787.0,88770.0,0.04059805]
[1766316530985,0.00055,88779.0,88770.0,0.04059805]
[1766316531184,0.00055,88779.0,88770.0,0.00564]
[1766316531390,0.00071743,88786.0,88770.0,0.00564]
[1766316536367,0.00564,88785.0,88770.0,0.00564]
[1766316536567,0.00071743,88784.0,88770.0,0.00564]
[1766316538272,0.00071743,88784.0,88767.0,0.25824]
[1766316549739,0.00071743,88784.0,88766.0,0.00564]
[1766316549866,0.00071743,88784.0,88767.0,0.40152]
[1766316550297,0.00071743,88784.0,88766.0,0.00564]
[1766316550657,0.00071743,88784.0,88770.0,0.16783]
[1766316551895,0.00564,88785.0,88771.0,0.16783]
[1766316552059,0.00564,88785.0,88776.0,0.23369]
[1766316552263,0.00564,88785.0,88778.0,0.16783]
[1766316552464,0.005091,88785.0,88766.0,0.00564]
[1766316552669,0.0303373,88800.0,88760.0,0.0001]
[1766316552670,0.00564,88796.0,88767.0,0.06878057]
[1766316552879,0.01055075,88795.0,88771.0,0.16783]
[1766316553078,0.00564,88796.0,88775.0,0.16783]
[1766316553280,0.00564,88796.0,88775.0,0.00564]
[1766316553281,0.01055086,88795.0,88775.0,0.00564]
[1766316553480,0.06314057,88787.0,88775.0,0.00564]
[1766316553683,0.00071743,88786.0,88775.0,0.00564]
[1766316555138,0.060858,88787.0,88775.0,0.00564]
[1766316556580,0.060858,88787.0,88775.0,0.005091]
[1766316557467,0.060858,88787.0,88763.0,0.03384123]
[1766316557733,0.060858,88787.0,88764.0,0.00564]
[1766316558107,0.060858,88787.0,88764.0,0.17347]
[1766316559069,0.060858,88787.0,88764.0,0.40716]
[1766316559303,0.060858,88787.0,88767.0,0.16783]
[1766316559539,0.060858,88787.0,88769.0,0.16783]
[1766316560263,0.060858,88787.0,88770.0,0.23369]
[1766316560492,0.060858,88787.0,88770.0,0.40152]
[1766316563692,0.0001,88785.0,88770.0,0.40152]
[1766316567499,0.0001,88785.0,88771.0,0.15026]
[1766316567700,0.0001,88785.0,88773.0,0.15026]
[1766316568523,0.0001,88785.0,88772.0,0.20836]
[1766316569780,0.0001,88785.0,88772.0,0.35862]
[1766316572007,0.0001,88785.0,88772.0,0.20836]
[1766316573032,0.0001,88785.0,88770.0,0.35862]
[1766316573208,0.0001,88785.0,88771.0,0.20836]
[1766316573401,0.0001,88785.0,88772.0,0.15026]
[1766316575699,0.0001,88785.0,88773.0,0.14808]
[1766316578520,0.0002,88785.0,88773.0,0.14808]
[1766316579400,0.0002,88785.0,88773.0,0.35297]
[1766316581463,0.06314057,88784.0,88769.0,0.00564]
[1766316581688,0.06878057,88784.0,88770.0,0.35297]
[1766316581991,0.06878057,88784.0,88773.0,0.14808]
[1766316582169,0.06878057,88784.0,88774.0,0.14808]
[1766316585765,0.06878057,88784.0,88773.0,0.20489]
[1766316586115,0.06878057,88784.0,88770.0,0.14808]
[1766316586956,0.06878057,88784.0,88769.0,0.21053]
[1766316587719,0.06878057,88784.0,88770.0,0.14808]
[1766316590695,0.06878057,88784.0,88770.0,0.20489]
[1766316590875,0.06878057,88784.0,88772.0,0.14808]
[1766316591281,0.06878057,88784.0,88772.0,0.35297]
[1766316593629,0.06878057,88784.0,88769.0,0.00564]
[1766316594129,0.06878057,88784.0,88769.0,0.15372]
[1766316597183,0.06878057,88784.0,88770.0,0.35297]
[1766316597565,0.06878057,88784.0,88769.0,0.00564]
[1766316597989,0.06878057,88784.0,88770.0,0.35297]
[1766316598168,0.06878057,88784.0,88769.0,0.00564]
[1766316598363,0.06878057,88784.0,88770.0,0.20489]
[1766316598569,0.06878057,88784.0,88771.0,0.14808]
[1766316605902,0.07568863,88784.0,88770.0,0.20489]
[1766316606532,0.06878057,88784.0,88770.0,0.20489]
[1766316609678,0.00564,88784.0,88771.0,0.14052]
[1766316609900,0.0004,88785.0,88784.0,0.000549]
[1766316610118,0.00564,88787.0,88784.0,0.000549]
[1766316610327,0.00564,88787.0,88781.0,0.14052]
[1766316610551,0.00564,88787.0,88774.0,0.2022]
[1766316610761,0.00564,88787.0,88777.0,0.2022]
[1766316610983,0.00564,88787.0,88780.0,0.14052]
[1766316611196,0.00564,88787.0,88782.0,0.14052]
[1766316612123,0.00564,88787.0,88783.0,0.14052]
[1766316612587,0.00564,88787.0,88783.0,0.13997]
[1766316612785,0.00564,88787.0,88774.0,0.2022]
[1766316614412,0.00564,88787.0,88775.0,0.14052]
[1766316614571,0.00564,88787.0,88776.0,0.14052]
[1766316615226,0.00564,88787.0,88777.0,0.14052]
[1766316615556,0.00564,88787.0,88777.0,0.34272]
[1766316617531,0.03384008,88794.0,88777.0,0.34272]
[1766316617769,0.00564,88789.0,88777.0,0.34272]
[1766316619208,0.00564,88789.0,88778.0,0.14052]
[1766316624061,0.00564,88789.0,88777.0,0.2022]
[1766316626052,0.00564,88789.0,88778.0,0.14135]
[1766316630913,0.00564,88789.0,88777.0,0.2022]
[1766316631220,0.00564,88790.0,88777.0,0.2022]
[1766316631401,0.01056031,88789.0,88777.0,0.2022]
[1766316631724,0.00564,88790.0,88777.0,0.2022]
[1766316631905,0.01056031,88789.0,88777.0,0.2022]
[1766316632106,0.00564,88790.0,88777.0,0.2022]
[1766316632329,0.01056031,88789.0,88777.0,0.2022]
[1766316632523,0.00564,88790.0,88777.0,0.2022]
[1766316632728,0.01056038,88789.0,88777.0,0.2022]
[1766316632928,0.00564,88790.0,88777.0,0.2022]
[1766316633110,0.01056038,88789.0,88777.0,0.2022]
[1766316633315,0.00564,88790.0,88777.0,0.2022]
[1766316633587,0.01056047,88789.0,88777.0,0.2022]
[1766316633756,0.00564,88790.0,88777.0,0.2022]
[1766316634060,0.01056047,88789.0,88777.0,0.2022]
[1766316634236,0.00564,88790.0,88777.0,0.2022]
[1766316634438,0.01056056,88789.0,88777.0,0.2022]
[1766316634619,0.01056056,88789.0,88773.0,0.00564]
[1766316636066,0.01056056,88789.0,88774.0,0.32031]
[1766316637129,0.01056056,88789.0,88775.0,0.1375]
[1766316637130,0.01001156,88789.0,88775.0,0.1375]
[1766316637348,0.00564,88790.0,88775.0,0.1375]
[1766316645583,0.00564,88790.0,88774.0,0.03045175]
[1766316649113,0.0105626,88789.0,88774.0,0.03045175]
[1766316649326,0.0105626,88788.0,88774.0,0.03045175]
[1766316649711,0.00564,88790.0,88774.0,0.03045175]
[1766316649914,0.01056282,88789.0,88774.0,0.03045175]
[1766316650118,0.01056282,88788.0,88774.0,0.03045175]
[1766316650319,0.00564,88790.0,88774.0,0.03045175]
[1766316650470,0.01056282,88789.0,88774.0,0.03045175]
[1766316650672,0.01056282,88788.0,88774.0,0.03045175]
[1766316650878,0.00564,88790.0,88774.0,0.03045175]
[1766316651084,0.01056284,88789.0,88774.0,0.03045175]
[1766316651415,0.01056284,88788.0,88774.0,0.03045175]
[1766316651552,0.00564,88790.0,88774.0,0.03045175]
[1766316651757,0.01056282,88789.0,88774.0,0.03045175]
[1766316651994,0.01056282,88788.0,88774.0,0.03045175]
[1766316652145,0.00564,88790.0,88774.0,0.03045175]
[1766316652347,0.01056282,88789.0,88774.0,0.03045175]
[1766316652542,0.01056282,88788.0,88774.0,0.03045175]
[1766316652755,0.00564,88790.0,88774.0,0.03045175]
[1766316652963,0.04440291,88789.0,88774.0,0.03045175]
[1766316653161,0.01056283,88788.0,88774.0,0.03045175]
[1766316653364,0.03384008,88789.0,88773.0,0.17359175]
[1766316653618,0.0105628,88788.0,88773.0,0.17359175]
[1766316653839,0.03384008,88789.0,88773.0,0.17359175]
[1766316654068,0.0105628,88788.0,88773.0,0.17359175]
[1766316654272,0.03384008,88789.0,88773.0,0.17359175]
[1766316654462,0.01056282,88788.0,88773.0,0.17359175]
[1766316654619,0.03384008,88789.0,88773.0,0.17359175]
[1766316654824,0.01056281,88788.0,88773.0,0.17359175]
[1766316655017,0.03384008,88789.0,88773.0,0.17359175]
[1766316655374,0.0105628,88788.0,88773.0,0.03609175]
[1766316655574,0.00564,88792.0,88777.0,0.1375]
[1766316655782,0.01056284,88791.0,88777.0,0.1375]
[1766316655961,0.04440292,88790.0,88777.0,0.1375]
[1766316656169,0.01056284,88789.0,88777.0,0.1375]
[1766316656483,0.01056284,88788.0,88777.0,0.1375]
[1766316656693,0.03384008,88790.0,88777.0,0.1375]
[1766316656900,0.01056283,88789.0,88777.0,0.1375]
[1766316657101,0.01056283,88788.0,88777.0,0.1375]
[1766316657305,0.03384008,88790.0,88777.0,0.1375]
[1766316657460,0.01056283,88789.0,88777.0,0.1375]
[1766316657702,0.01056283,88788.0,88777.0,0.1375]
[1766316657846,0.03384008,88790.0,88777.0,0.1375]
[1766316658049,0.01056348,88789.0,88777.0,0.1375]
[1766316658264,0.01056348,88788.0,88777.0,0.1375]
[1766316658503,0.03384008,88790.0,88777.0,0.1375]
[1766316658712,0.01056636,88789.0,88777.0,0.1375]
[1766316658946,0.01056636,88788.0,88777.0,0.1375]
[1766316659141,0.03384008,88790.0,88777.0,0.1375]
[1766316659294,0.01056787,88789.0,88777.0,0.1375]
[1766316659495,0.01056787,88788.0,88777.0,0.1375]
[1766316659694,0.03384008,88790.0,88777.0,0.1375]
[1766316659946,0.01056788,88789.0,88777.0,0.1375]
[1766316660094,0.01056788,88788.0,88777.0,0.1375]
[1766316660296,0.03384008,88790.0,88777.0,0.1375]
[1766316660534,0.01056788,88789.0,88777.0,0.1375]
[1766316660745,0.01056788,88788.0,88777.0,0.1375]
[1766316660911,0.03384008,88790.0,88777.0,0.1375]
[1766316661108,0.01056789,88789.0,88777.0,0.1375]
[1766316661355,0.01056789,88788.0,88777.0,0.1375]
[1766316661689,0.03384008,88790.0,88777.0,0.1375]
[1766316661875,0.01056787,88789.0,88777.0,0.1375]
[1766316662103,0.01056787,88788.0,88777.0,0.1375]
[1766316662238,0.03384008,88790.0,88777.0,0.1375]
[1766316662439,0.01056788,88789.0,88777.0,0.1375]
[1766316662780,0.01056788,88788.0,88777.0,0.1375]
[1766316663013,0.03384008,88790.0,88777.0,0.1375]
[1766316663149,0.01056788,88789.0,88777.0,0.1375]
[1766316663351,0.01056788,88788.0,88777.0,0.1375]
[1766316663553,0.03384008,88790.0,88777.0,0.1375]
[1766316663771,0.01056788,88789.0,88777.0,0.1375]
[1766316663951,0.01056788,88788.0,88777.0,0.18281]
[1766316664139,0.03384008,88790.0,88777.0,0.32031]
[1766316664345,0.01056788,88789.0,88777.0,0.32031]
[1766316664681,0.01056788,88788.0,88777.0,0.32031]
[1766316664846,0.03384008,88790.0,88777.0,0.32031]
[1766316665047,0.01056787,88789.0,88777.0,0.32031]
[1766316665255,0.01056787,88788.0,88777.0,0.32031]
[1766316665461,0.03384008,88790.0,88777.0,0.32031]
[1766316665706,0.01056817,88789.0,88777.0,0.32031]
[1766316665906,0.01056817,88788.0,88777.0,0.32031]
[1766316666106,0.03384008,88790.0,88777.0,0.32031]
[1766316666305,0.01056815,88789.0,88777.0,0.32031]
[1766316666466,0.01056815,88788.0,88777.0,0.32031]
[1766316666839,0.03384008,88790.0,88777.0,0.32031]
[1766316666960,0.01056894,88789.0,88777.0,0.32031]
[1766316667267,0.01056894,88788.0,88777.0,0.32031]
[1766316667459,0.03384008,88790.0,88777.0,0.32031]
[1766316667687,0.01056891,88789.0,88777.0,0.32031]
[1766316667890,0.01056891,88788.0,88777.0,0.32031]
[1766316668088,0.03384008,88790.0,88777.0,0.32031]
[1766316668289,0.01056891,88789.0,88777.0,0.32031]
[1766316668465,0.01056891,88788.0,88777.0,0.32031]
[1766316668703,0.03384008,88790.0,88777.0,0.32031]
[1766316668920,0.0105689,88789.0,88777.0,0.32031]
[1766316669126,0.0105689,88788.0,88777.0,0.32031]
[1766316669323,0.03384008,88790.0,88777.0,0.32031]
[1766316669653,0.0105689,88789.0,88777.0,0.32031]
[1766316669853,0.0105689,88788.0,88777.0,0.32031]
[1766316670186,0.03384008,88790.0,88777.0,0.32031]
[1766316670357,0.01056856,88789.0,88777.0,0.32031]
[1766316670529,0.01056856,88788.0,88777.0,0.32031]
[1766316670701,0.03384008,88790.0,88777.0,0.32031]
[1766316670902,0.01056733,88789.0,88777.0,0.32031]
[1766316671203,0.01056733,88788.0,88777.0,0.32031]
[1766316671503,0.03384008,88790.0,88777.0,0.32031]
[1766316671704,0.01056673,88789.0,88777.0,0.32031]
[1766316671910,0.01056673,88788.0,88777.0,0.32031]
[1766316672112,0.03384008,88790.0,88777.0,0.32031]
[1766316672350,0.01056639,88789.0,88777.0,0.32031]
[1766316672543,0.01056639,88788.0,88777.0,0.32031]
[1766316672749,0.03384008,88790.0,88777.0,0.32031]
[1766316672955,0.01056639,88789.0,88777.0,0.32031]
[1766316673168,0.01056639,88788.0,88777.0,0.18281]
[1766316673524,0.03384008,88790.0,88778.0,0.13536]
[1766316673740,0.0105664,88789.0,88778.0,0.13536]
[1766316673887,0.0105664,88788.0,88778.0,0.13536]
[1766316674072,0.03384008,88790.0,88778.0,0.13536]
[1766316674280,0.01056644,88789.0,88778.0,0.13536]
[1766316674479,0.01056644,88788.0,88778.0,0.13536]
[1766316674683,0.03384008,88790.0,88778.0,0.13536]
[1766316674889,0.01056643,88789.0,88778.0,0.13536]
[1766316675130,0.01056643,88788.0,88778.0,0.13536]
[1766316675360,0.03384008,88790.0,88778.0,0.13536]
[1766316675518,0.01056493,88789.0,88778.0,0.13536]
[1766316675697,0.01056493,88788.0,88778.0,0.13536]
[1766316675879,0.03384008,88790.0,88778.0,0.13536]
[1766316676079,0.01056494,88789.0,88778.0,0.13536]
[1766316676286,0.01056494,88788.0,88778.0,0.13536]
[1766316676510,0.03384008,88790.0,88779.0,0.17912]
[1766316676711,0.01056493,88789.0,88779.0,0.31448]
[1766316676907,0.01056493,88788.0,88779.0,0.31448]
[1766316677129,0.03384008,88791.0,88788.0,0.00055]
[1766316677296,0.00564,88789.0,88788.0,0.00055]
[1766316677491,0.00564,88790.0,88788.0,0.00055]
[1766316677797,0.00564,88790.0,88780.0,0.13536]
[1766316688763,0.00564,88790.0,88784.0,0.13536]
[1766316688975,0.00035904,88798.0,88784.0,0.13536]
[1766316689169,0.00564,88794.0,88784.0,0.13536]
[1766316689744,0.00564,88794.0,88783.0,0.17912]
[1766316697540,0.000549,88783.0,88774.0,0.04059805]
[1766316697740,0.006189,88783.0,88770.0,0.00564]
[1766316697946,0.00564,88783.0,88770.0,0.00564]
[1766316703887,0.00564,88783.0,88770.0,0.13409]
[1766316708358,0.00564,88784.0,88770.0,0.13409]
[1766316710870,0.03384169,88791.0,88770.0,0.13409]
[1766316711064,0.00564,88790.0,88770.0,0.13409]
[1766316711273,0.01533823,88790.0,88770.0,0.13409]
[1766316713587,0.01533823,88790.0,88770.0,0.12845]
[1766316713932,0.03384169,88789.0,88772.0,0.12845]
[1766316714182,0.03384169,88789.0,88772.0,0.30332]
[1766316714610,0.03384169,88789.0,88772.0,0.33716169]
[1766316714820,0.03384169,88789.0,88772.0,0.20871169]
[1766316715031,0.03384169,88789.0,88773.0,0.12845]
[1766316721195,0.00564,88788.0,88774.0,0.17487]
[1766316721400,0.00564,88788.0,88775.0,0.12845]
[1766316721597,0.00564,88788.0,88776.0,0.30332]
[1766316721872,0.03329169,88787.0,88777.0,0.01351701]
[1766316722052,0.00564,88790.0,88780.0,0.17487]
[1766316722255,0.00564,88793.0,88783.0,0.12845]
[1766316722859,0.00564,88793.0,88784.0,0.03383856]
[1766316723883,0.00035904,88798.0,88784.0,0.03383856]
[1766316724097,0.00564,88797.0,88784.0,0.03383856]
[1766316724858,0.00564,88797.0,88785.0,0.28518]
[1766316725083,0.00564,88797.0,88786.0,0.1202]
[1766316725685,0.00564,88797.0,88787.0,0.00574]
[1766316733113,0.00564,88797.0,88786.0,0.1202]
[1766316733542,0.01138,88797.0,88786.0,0.12594]
[1766316734757,0.01138,88797.0,88786.0,0.00574]
[1766316735196,0.00564,88797.0,88786.0,0.00574]
[1766316740962,0.03041713,88812.0,88799.0,0.1202]
[1766316741166,0.01619997,88811.0,88801.0,0.1202]
[1766316741365,0.00564,88811.0,88801.0,0.1202]
[1766316741520,0.00564,88811.0,88802.0,0.0338315]
[1766316741722,0.00564,88811.0,88802.0,0.0332815]
[1766316741929,0.00564,88811.0,88802.0,1.5e-06]
[1766316742149,0.00564,88811.0,88786.0,0.04059805]
[1766316742330,0.06314057,88795.0,88780.0,0.04059805]
[1766316742649,0.06878057,88795.0,88784.0,0.0338368]
[1766316753920,0.06878057,88795.0,88782.0,0.00564]
[1766316753921,0.01026174,88794.0,88782.0,0.00564]
[1766316754151,0.06314057,88793.0,88776.0,0.04059805]
[1766316754271,0.06314057,88793.0,88773.0,0.00564]
[1766316754919,0.03384169,88792.0,88773.0,0.00564]
[1766316756726,0.00564,88791.0,88774.0,0.2746]
[1766316757039,0.00564,88791.0,88773.0,0.00564]
[1766316757402,0.03384001,88790.0,88774.0,0.15291]
[1766316757609,0.03384001,88790.0,88776.0,0.12169]
[1766316760133,0.06314057,88789.0,88776.0,0.12169]
[1766316760874,0.03384001,88788.0,88773.0,0.03602265]
[1766316761231,0.04080694,88788.0,88773.0,0.03602265]
[1766316761605,0.00696693,88788.0,88773.0,0.03602265]
[1766316761905,0.03384005,88787.0,88773.0,0.03602265]
[1766316764417,0.03384005,88787.0,88773.0,0.00564]
[1766316765668,0.044111,88787.0,88772.0,0.03037254]
[1766316766089,0.01027095,88787.0,88772.0,0.03037254]
[1766316766495,0.03384169,88786.0,88772.0,0.15206254]
[1766316766696,0.00564,88785.0,88773.0,0.12169]
[1766316767546,0.03384169,88784.0,88773.0,0.12169]
[1766316773018,0.03384169,88784.0,88774.0,0.12169]
[1766316774617,0.00564,88785.0,88774.0,0.12169]
[1766316775935,0.00564,88785.0,88775.0,0.12169]
[1766316781330,0.00564,88785.0,88772.0,4.57e-06]
[1766316781495,0.00564,88785.0,88753.0,0.15301]
[1766316781496,0.06314057,88773.0,88753.0,0.0001]
[1766316781705,0.06314057,88773.0,88739.0,0.12626548]
[1766316781706,0.06314057,88754.0,88739.0,0.04508]
[1766316781912,0.06314057,88754.0,88725.0,0.04508]
[1766316781913,0.06314057,88740.0,88725.0,0.04508]
[1766316782150,0.06314057,88740.0,88726.0,0.15855]
[1766316782468,0.06314057,88740.0,88727.0,0.12169]
[1766316782877,0.06322936,88740.0,88728.0,0.00564]
[1766316783745,0.06886936,88740.0,88727.0,0.00564]
[1766316784812,0.06886936,88740.0,88729.0,0.12169]
[1766316785032,0.06886936,88740.0,88730.0,0.11697]
[1766316785464,0.06886936,88740.0,88731.0,0.27432]
[1766316787566,0.06886936,88740.0,88727.0,0.00564]
[1766316787990,0.06886936,88740.0,88730.0,0.15735]
[1766316788197,0.06886936,88740.0,88731.0,0.11697]
[1766316789243,0.06886936,88740.0,88731.0,0.15735]
[1766316789457,0.06886936,88740.0,88731.0,0.27432]